fUSD/lending_fUSD_20250404
["ID","MTS","AMOUNT","RATE_DAILY","PERIOD"]
[357101546,1743742261288,-2215.63,0.00049589,120]
[357101547,1743742261298,-500.0,0.00049589,120]
[357101548,1743742261308,-500.0,0.00049589,120]
[357101549,1743742261317,-500.0,0.00049589,120]
[357101550,1743742261327,-500.0,0.00049589,120]
[357101551,1743742261336,-500.0,0.00049589,120]
[357101552,1743742261345,-1621.94,0.00049589,120]
[357101553,1743742261354,-1984.67,0.00049589,120]
[357101554,1743742261363,-500.0,0.00049589,120]
[357101555,1743742261372,-185.44909737,0.00049589,120]
[357101556,1743742261382,-500.0,0.00049589,10]
[357101557,1743742261392,-328.10454651,0.00049589,120]
[357101558,1743742261401,-500.0,0.00049589,120]
[357101559,1743742261411,-500.0,0.00049589,120]
[357101560,1743742261420,-1238.29,0.00049589,120]
[357101561,1743742261430,-500.0,0.00049589,120]
[357101562,1743742261439,-2200.62,0.00049589,120]
[357101563,1743742261448,-534.24,0.00049589,120]
[357101564,1743742261457,-500.0,0.00049589,7]
[357101565,1743742261467,-500.0,0.00049589,120]
[357101566,1743742261476,-1910.5,0.00049589,120]
[357101567,1743742261485,-1140.44,0.00049589,120]
[357101568,1743742261495,-2219.86,0.00049589,120]
[357101569,1743742261504,-500.0,0.00049589,120]
[357101570,1743742261514,-500.0,0.00049589,120]
[357101571,1743742261524,-2020.09,0.00049589,120]
[357101572,1743742261533,-500.0,0.00049589,2]
[357101573,1743742261543,-2048.88,0.00049589,120]
[357101574,1743742261552,-500.0,0.00049589,120]
[357101575,1743742261561,-804.71,0.00049589,120]
[357101576,1743742261571,-500.0,0.00049589,120]
[357101577,1743742261580,-500.0,0.00049589,120]
[357101578,1743742261589,-634.27,0.00049589,120]
[357101579,1743742261598,-2025.27,0.00049589,120]
[357101580,1743742261608,-558.62,0.00049589,120]
[357101581,1743742261617,-500.0,0.00049589,120]
[357101582,1743742261627,-170.19146229,0.00049589,2]
[357101583,1743742261636,-362.93713252,0.00049589,120]
[357101584,1743742261689,-1033.99,0.00049589,120]
[357101585,1743742261698,-218.3680652,0.00049589,120]
[357101586,1743742261707,-2611.84,0.00049589,120]
[357101587,1743742261716,-500.0,0.00049589,120]
[357101588,1743742261726,-1942.56,0.00049589,120]
[357101589,1743742261735,-1677.91,0.00049589,120]
[357101590,1743742261744,-500.0,0.00049589,2]
[357101591,1743742261753,-2219.22,0.00049589,120]
[357101592,1743742261762,-624.53,0.00049589,120]
[357101593,1743742261771,-2008.94,0.00049589,120]
[357101594,1743742261781,-751.55,0.00049589,120]
[357101595,1743742261790,-1907.67,0.00049589,120]
[357101596,1743742261799,-500.0,0.00049589,120]
[357101597,1743742261808,-274.70788106,0.00049589,120]
[357101598,1743742261817,-500.0,0.00049589,120]
[357101599,1743742261826,-2210.43,0.00049589,120]
[357101600,1743742261835,-1861.33,0.00049589,120]
[357101601,1743742261844,-607.75,0.00049589,120]
[357101602,1743742261853,-10738.0,0.00049589,2]
[357101603,1743742261863,-525.26,0.00049589,120]
[357101604,1743742261872,-127491.97,0.00049589,7]
[357101605,1743742261885,-500.0,0.00049589,120]
[357101606,1743742261895,-829.28,0.00049589,120]
[357101607,1743742261904,-500.0,0.00049589,120]
[357101608,1743742261914,-309.46849122,0.00049589,120]
[357101609,1743742261924,-2229.15,0.00049589,120]
[357101610,1743742261934,-500.0,0.00049589,120]
[357101611,1743742261944,-583.75,0.00049589,120]
[357101612,1743742261953,-1669.74,0.00049589,120]
[357101613,1743742261963,-500.0,0.00049589,120]
[357101614,1743742261972,-500.0,0.00049589,2]
[357101615,1743742261981,-529.37,0.00049589,120]
[357101616,1743742261990,-500.0,0.00049589,120]
[357101617,1743742261999,-1147.88,0.00049589,120]
[357101618,1743742262009,-500.0,0.00049589,120]
[357101619,1743742262018,-418.62659654,0.00049589,120]
[357101620,1743742262027,-500.0,0.00049589,2]
[357101621,1743742262037,-1575.12,0.00049589,120]
[357101622,1743742262046,-500.0,0.00049589,120]
[357101623,1743742262055,-1000.0,0.00049589,20]
[357101624,1743742262064,-168.86,0.00049589,120]
[357101625,1743742262074,-1000.0,0.00049589,20]
[357101626,1743742262083,-742.9542556,0.00049591,30]
[357101627,1743742262093,-515.19314524,0.00049624,30]
[357101628,1743742262102,-150.0,0.00049676,120]
[357101629,1743742262112,-715.44,0.000497,120]
[357101630,1743742262121,-40967.37,0.000497,40]
[357101631,1743742262131,-1000.0,0.00049726,20]
[357101632,1743742262141,-1000.0,0.00049726,20]
[357101633,1743742262150,-608.94690309,0.00049762,30]
[357101634,1743742262159,-751.19250665,0.000498,120]
[357101635,1743742262168,-190.74,0.000498,120]
[357101636,1743742262178,-255.85734837,0.000498,120]
[357101637,1743742262187,-156.91555468,0.000498,30]
[357101638,1743742262197,-500.0,0.00049863,2]
[357101639,1743742262207,-1627.45,0.00049863,120]
[357101640,1743742262216,-1661.534427,0.00049863,120]
[357101641,1743742262225,-1847.248262,0.00049863,120]
[357101642,1743742262234,-500.0,0.00049863,2]
[357101643,1743742262243,-500.0,0.00049863,3]
[357101644,1743742262253,-500.0,0.00049863,120]
[357101645,1743742262263,-500.0,0.00049863,60]
[357101646,1743742262272,-500.0,0.00049863,120]
[357101647,1743742262282,-571.30648799,0.00049863,120]
[357101648,1743742262293,-500.0,0.00049863,120]
[357101649,1743742262303,-500.0,0.00049863,120]
[357101650,1743742262312,-668.69,0.00049863,120]
[357101651,1743742262322,-500.0,0.00049863,120]
[357101652,1743742262331,-500.0,0.00049863,120]
[357101653,1743742262340,-500.0,0.00049863,120]
[357101654,1743742262349,-500.0,0.00049863,120]
[357101655,1743742262359,-500.0,0.00049863,120]
[357101656,1743742262368,-500.0,0.00049863,120]
[357101657,1743742262377,-500.0,0.00049863,120]
[357101658,1743742262386,-500.0,0.00049863,120]
[357101659,1743742262395,-1018.55,0.00049863,10]
[357101660,1743742262404,-500.0,0.00049863,120]
[357101661,1743742262414,-528.07,0.00049863,120]
[357101662,1743742262423,-500.0,0.00049863,30]
[357101663,1743742262433,-500.0,0.00049863,120]
[357101664,1743742262442,-2000.0,0.00049863,2]
[357101665,1743742262451,-636.7,0.00049863,120]
[357101666,1743742262460,-2104.44,0.00049863,120]
[357101667,1743742262470,-500.0,0.00049863,120]
[357101668,1743742262479,-500.0,0.00049863,120]
[357101669,1743742262490,-500.0,0.00049863,120]
[357101670,1743742262499,-1964.9,0.00049863,120]
[357101671,1743742262508,-500.0,0.00049863,120]
[357101672,1743742262517,-3250.94,0.00049863,2]
[357101673,1743742262526,-500.0,0.00049863,120]
[357101674,1743742262534,-500.0,0.00049863,120]
[357101675,1743742262543,-500.0,0.00049863,120]
[357101676,1743742262552,-1041.18,0.00049863,120]
[357101677,1743742262561,-1836.7,0.00049863,120]
[357101678,1743742262570,-500.0,0.00049863,120]
[357101679,1743742262580,-500.0,0.00049863,120]
[357101680,1743742262589,-500.0,0.00049863,120]
[357101681,1743742262598,-500.0,0.00049863,120]
[357101682,1743742262608,-561.86,0.00049863,120]
[357101683,1743742262617,-1026.47,0.00049863,120]
[357101684,1743742262626,-500.0,0.00049863,120]
[357101685,1743742262636,-364.43034439,0.00049863,120]
[357101686,1743742262644,-1708.57,0.00049863,120]
[357101687,1743742262653,-2260.17,0.00049863,120]
[357101688,1743742262662,-1847.64,0.00049863,120]
[357101689,1743742262672,-1600.29,0.00049863,120]
[357101690,1743742262681,-972.82,0.00049863,120]
[357101691,1743742262690,-1667.89,0.00049863,120]
[357101692,1743742262699,-1074.38,0.00049863,30]
[357101693,1743742262708,-2122.56,0.00049863,120]
[357101694,1743742262718,-500.0,0.00049863,120]
[357101695,1743742262727,-500.0,0.00049863,120]
[357101696,1743742262736,-500.0,0.00049863,120]
[357101697,1743742262745,-1956.99,0.00049863,120]
[357101698,1743742262754,-1120.02,0.00049863,120]
[357101699,1743742262763,-500.0,0.00049863,120]
[357101700,1743742262774,-1669.42,0.00049863,120]
[357101701,1743742262783,-500.0,0.00049863,120]
[357101702,1743742262793,-500.0,0.00049863,30]
[357101703,1743742262802,-533.22,0.00049863,2]
[357101704,1743742262811,-500.0,0.00049863,120]
[357101705,1743742262821,-2628.48,0.00049863,120]
[357101706,1743742262830,-2109.35,0.00049863,120]
[357101707,1743742262839,-424.62461338,0.00049863,120]
[357101708,1743742262848,-551.66930018,0.00049863,120]
[357101709,1743742262857,-560.52,0.00049863,120]
[357101710,1743742262866,-500.0,0.00049863,2]
[357101711,1743742262879,-1936.83,0.00049863,120]
[357101712,1743742262888,-533.4120946,0.00049863,120]
[357101713,1743742262897,-1759.76,0.00049863,120]
[357101714,1743742262906,-2302.46,0.00049863,120]
[357101715,1743742262916,-353.41474762,0.00049863,120]
[357101716,1743742262927,-500.0,0.00049863,120]
[357101717,1743742262935,-1845.54,0.00049863,120]
[357101718,1743742262944,-2235.82,0.00049863,120]
[357101719,1743742262955,-500.0,0.00049863,120]
[357101720,1743742262964,-650.53,0.00049863,120]
[357101721,1743742262973,-2294.51,0.00049863,120]
[357101722,1743742262982,-1764.75,0.00049863,120]
[357101723,1743742262991,-500.0,0.00049863,120]
[357101724,1743742263000,-1798.97,0.00049863,120]
[357101725,1743742263009,-2061.78,0.00049863,120]
[357101726,1743742263018,-500.0,0.00049863,120]
[357101727,1743742263027,-2212.69,0.00049863,120]
[357101728,1743742263036,-2600.67,0.00049863,120]
[357101729,1743742263045,-243.58080392,0.00049863,120]
[357101730,1743742263055,-500.0,0.00049863,120]
[357101731,1743742263064,-1758.13,0.00049863,120]
[357101732,1743742263073,-500.0,0.00049863,120]
[357101733,1743742263082,-2390.89,0.00049863,120]
[357101734,1743742263091,-500.0,0.00049863,120]
[357101735,1743742263101,-1773.07,0.00049863,120]
[357101736,1743742263110,-1780.62,0.00049863,120]
[357101737,1743742263119,-2213.48,0.00049863,120]
[357101738,1743742263129,-500.0,0.00049863,120]
[357101739,1743742263138,-500.0,0.00049863,120]
[357101740,1743742263147,-1740.8,0.00049863,120]
[357101741,1743742263156,-500.0,0.00049863,120]
[357101742,1743742263166,-1782.21,0.00049863,120]
[357101743,1743742263175,-2008.49,0.00049863,120]
[357101744,1743742263184,-232.2085582,0.00049863,120]
[357101745,1743742263194,-500.0,0.00049863,120]
[357101746,1743742263204,-290.96168493,0.00049863,120]
[357101747,1743742263213,-810.96,0.00049863,120]
[357101748,1743742263223,-514.65909785,0.00049863,10]
[357101749,1743742263233,-523.36,0.00049863,120]
[357101750,1743742263242,-2260.47,0.00049863,120]
[357101751,1743742263252,-668.1,0.00049863,120]
[357101752,1743742263262,-500.0,0.00049863,120]
[357101753,1743742263274,-2235.26,0.00049863,120]
[357101754,1743742263284,-2123.04,0.00049863,120]
[357101755,1743742263294,-1337.55,0.00049863,30]
[357101756,1743742263304,-1605.02,0.00049863,120]
[357101757,1743742263315,-379.76774286,0.00049863,120]
[357101758,1743742263325,-500.0,0.00049863,120]
[357101759,1743742263335,-500.0,0.00049863,120]
[357101760,1743742263345,-1657.36,0.00049863,120]
[357101761,1743742263355,-1702.41,0.00049863,120]
[357101762,1743742263365,-1553.62,0.00049863,120]
[357101763,1743742263375,-500.0,0.00049863,120]
[357101764,1743742263384,-500.0,0.00049863,120]
[357101765,1743742263394,-1286.62,0.00049863,120]
[357101766,1743742263403,-500.0,0.00049863,100]
[357101767,1743742263414,-500.0,0.00049863,120]
[357101768,1743742263424,-1768.28,0.00049863,120]
[357101769,1743742263434,-205.02848592,0.00049863,120]
[357101770,1743742263444,-500.0,0.00049863,12]
[357101771,1743742263454,-1152.52,0.00049863,120]
[357101772,1743742263463,-2735.4,0.00049863,120]
[357101773,1743742263472,-741.55,0.00049863,120]
[357101774,1743742263481,-500.0,0.00049863,120]
[357101775,1743742263490,-2305.38,0.00049863,120]
[357101776,1743742263500,-1520.4,0.00049863,120]
[357101777,1743742263509,-1181.69,0.00049863,120]
[357101778,1743742263519,-969.92338683,0.00049863,30]
[357101779,1743742263529,-178.17076849,0.00049863,120]
[357101780,1743742263539,-1494.55,0.00049863,120]
[357101781,1743742263548,-2859.57,0.00049863,120]
[357101782,1743742263558,-500.0,0.00049863,120]
[357101783,1743742263568,-1642.16,0.00049863,120]
[357101784,1743742263577,-1845.58,0.00049863,120]
[357101785,1743742263587,-500.0,0.00049863,120]
[357101786,1743742263597,-500.0,0.00049863,120]
[357101787,1743742263607,-500.0,0.00049863,120]
[357101788,1743742263616,-1790.85,0.00049863,120]
[357101789,1743742263626,-725.01,0.00049863,120]
[357101790,1743742263636,-500.0,0.00049863,120]
[357101791,1743742263645,-1795.3,0.00049863,120]
[357101792,1743742263655,-2215.63,0.00049863,120]
[357101793,1743742263665,-500.0,0.00049863,120]
[357101794,1743742263675,-500.0,0.00049863,120]
[357101795,1743742263685,-500.0,0.00049863,120]
[357101796,1743742263695,-500.0,0.00049863,120]
[357101797,1743742263705,-500.0,0.00049863,120]
[357101798,1743742263714,-1621.94,0.00049863,120]
[357101799,1743742263725,-1984.67,0.00049863,120]
[357101800,1743742263735,-325.31360073,0.00049863,120]
[357101801,1743742263745,-500.0,0.00049863,10]
[357101802,1743742263755,-500.0,0.00049863,120]
[357101803,1743742263765,-500.0,0.00049863,120]
[357101804,1743742263775,-1238.29,0.00049863,120]
[357101805,1743742263785,-500.0,0.00049863,120]
[357101806,1743742263795,-2200.62,0.00049863,120]
[357101807,1743742263805,-534.24,0.00049863,120]
[357101808,1743742263815,-500.0,0.00049863,7]
[357101809,1743742263824,-500.0,0.00049863,120]
[357101810,1743742263835,-1910.5,0.00049863,120]
[357101811,1743742263845,-1140.44,0.00049863,120]
[357101812,1743742263855,-2219.86,0.00049863,120]
[357101813,1743742263865,-500.0,0.00049863,120]
[357101814,1743742263877,-500.0,0.00049863,120]
[357101815,1743742263888,-2020.09,0.00049863,120]
[357101816,1743742263899,-160.15631196,0.00049863,2]
[357101817,1743742263908,-2048.88,0.00049863,120]
[357101818,1743742263919,-500.0,0.00049863,120]
[357101819,1743742263928,-804.71,0.00049863,120]
[357101820,1743742263938,-500.0,0.00049863,120]
[357101821,1743742263947,-500.0,0.00049863,120]
[357101822,1743742263957,-634.27,0.00049863,120]
[357101823,1743742264176,-2025.27,0.00049863,120]
[357101824,1743742264186,-558.62,0.00049863,120]
[357101825,1743742264196,-500.0,0.00049863,120]
[357101826,1743742264206,-1033.99,0.00049863,120]
[357101827,1743742264216,-2611.84,0.00049863,120]
[357101828,1743742264225,-500.0,0.00049863,120]
[357101829,1743742264235,-1942.56,0.00049863,120]
[357101830,1743742264245,-1677.91,0.00049863,120]
[357101831,1743742264254,-500.0,0.00049863,2]
[357101832,1743742264264,-624.53,0.00049863,120]
[357101833,1743742264275,-2219.22,0.00049863,120]
[357101834,1743742264285,-2008.94,0.00049863,120]
[357101835,1743742264294,-751.55,0.00049863,120]
[357101836,1743742264304,-1907.67,0.00049863,120]
[357101837,1743742264314,-500.0,0.00049863,120]
[357101838,1743742264323,-500.0,0.00049863,120]
[357101839,1743742264332,-2210.43,0.00049863,120]
[357101840,1743742264343,-1861.33,0.00049863,120]
[357101841,1743742264352,-607.75,0.00049863,120]
[357101842,1743742264362,-10738.0,0.00049863,2]
[357101843,1743742264372,-525.26,0.00049863,120]
[357101844,1743742264381,-127491.97,0.00049863,7]
[357101845,1743742264391,-500.0,0.00049863,120]
[357101846,1743742264401,-829.28,0.00049863,120]
[357101847,1743742264411,-592.91656909,0.00049863,120]
[357101848,1743742264421,-564.51642581,0.00049863,120]
[357101849,1743742264431,-2229.15,0.00049863,120]
[357101850,1743742264441,-583.75,0.00049863,120]
[357101851,1743742264451,-1669.74,0.00049863,120]
[357101852,1743742264461,-500.0,0.00049863,120]
[357101853,1743742264470,-500.0,0.00049863,2]
[357101854,1743742264480,-529.37,0.00049863,120]
[357101855,1743742264490,-500.0,0.00049863,120]
[357101856,1743742264499,-1147.88,0.00049863,120]
[357101857,1743742264509,-500.0,0.00049863,120]
[357101858,1743742264518,-500.0,0.00049863,2]
[357101859,1743742264528,-1575.12,0.00049863,120]
[357101860,1743742264538,-500.0,0.00049863,120]
[357101861,1743742264548,-1000.0,0.00049863,20]
[357101862,1743742264558,-400.0,0.0004987,3]
[357101863,1743742264568,-5150.0,0.0004988,27]
[357101864,1743742264578,-5150.0,0.0004988,28]
[357101865,1743742264588,-5150.0,0.0004988,35]
[357101866,1743742264597,-2717.37355507,0.00049898,58]
[357101867,1743742264606,-217.11728997,0.000499,7]
[357101868,1743742264616,-10967.63238248,0.000499,120]
[357101869,1743742264626,-680.09003483,0.000499,120]
[357101870,1743742264635,-211.01966202,0.000499,120]
[357101871,1743742264644,-186.45251484,0.000499,38]
[357101872,1743742264654,-183.4605162,0.000499,120]
[357101873,1743742264664,-2000.0,0.0004996,31]
[357101874,1743742264674,-500.0,0.00049972,120]
[357101875,1743742264684,-267.11295916,0.00049972,120]
[357101876,1743742264694,-42714.33435904,0.0004999,2]
[357101877,1743742264704,-418.26521582,0.0004999,120]
[357101878,1743742264714,-50000.0,0.0005,50]
[357101879,1743742264724,-1500.0,0.0005,2]
[357101880,1743742264734,-1500.0,0.0005,2]
[357101881,1743742264745,-1500.0,0.0005,2]
[357101882,1743742264754,-1500.0,0.0005,2]
[357101883,1743742264764,-1581.7,0.0005,2]
[357101884,1743742264774,-800.0,0.0005,5]
[357101885,1743742264784,-1515.08620847,0.0005,2]
[357101886,1743742264793,-1000.0,0.0005,2]
[357101887,1743742264803,-2890.85714801,0.0005,3]
[357101888,1743742264813,-764.50187358,0.0005,7]
[357101889,1743742264822,-811.7825673,0.0005,2]
[357101890,1743742264832,-1000.0,0.0005,3]
[357101891,1743742264841,-1000.0,0.0005,3]
[357101892,1743742264851,-2500.0,0.0005,5]
[357101893,1743742264860,-2500.0,0.0005,5]
[357101894,1743742264871,-249.36,0.0005,5]
[357101895,1743742264882,-8086.92,0.0005,14]
[357101896,1743742264892,-2242.11132834,0.0005,5]
[357101897,1743742264902,-703.0,0.0005,20]
[357101898,1743742264911,-210.58860234,0.0005,2]
[357101899,1743742264922,-1135.21874332,0.0005,2]
[357101900,1743742264931,-3012.93339364,0.0005,2]
[357101901,1743742264941,-30000.0,0.0005,30]
[357101902,1743742264952,-10000.0,0.0005,30]
[357101903,1743742264961,-200.0,0.0005,120]
[357101904,1743742264970,-508.98563234,0.0005,120]
[357101905,1743742264980,-500.0,0.0005,51]
[357101906,1743742264989,-6000.0,0.0005,30]
[357101907,1743742264998,-1536.70956625,0.0005,120]
[357101908,1743742265008,-200.0,0.0005,120]
[357101909,1743742265017,-1000.0,0.0005,120]
[357101910,1743742265027,-4000.0,0.0005,120]
[357101911,1743742265037,-6476.34304095,0.0005,5]
[357101912,1743742265047,-1910.74646766,0.0005,90]
[357101913,1743742265056,-223.0,0.0005,120]
[357101914,1743742265065,-1000000.0,0.0005,120]
[357101915,1743742265075,-204.45,0.0005,14]
[357101916,1743742265085,-250.0,0.0005,120]
[357101917,1743742265094,-154.15079231,0.0005,120]
[357101918,1743742265104,-1544.54982622,0.0005,120]
[357101919,1743742265114,-347.79614234,0.0005,120]
[357101920,1743742265124,-20000.0,0.0005,120]
[357101921,1743742265133,-400.00000004,0.0005,30]
[357101922,1743742265143,-4387.533785,0.0005,60]
[357101923,1743742265152,-2695.94,0.0005,120]
[357101924,1743742265162,-1000.0,0.0005,20]
[357101925,1743742265171,-192.41,0.00050036,2]
[357101926,1743742265181,-627.71,0.00050036,2]
[357101927,1743742265190,-174413.64124899,0.000501,7]
[357101928,1743742265200,-116561.32704377,0.000501,7]
[357101929,1743742265209,-142126.55824962,0.000501,30]
[357101930,1743742265219,-500.0,0.00050136,2]
[357101931,1743742265228,-1627.45,0.00050136,120]
[357101932,1743742265238,-1661.534427,0.00050136,120]
[357101933,1743742265247,-1847.248262,0.00050136,120]
[357101934,1743742265257,-500.0,0.00050136,2]
[357101935,1743742265266,-500.0,0.00050136,3]
[357101936,1743742265276,-500.0,0.00050136,120]
[357101937,1743742265285,-569.11131556,0.00050136,60]
[357101938,1743742265295,-500.0,0.00050136,120]
[357101939,1743742265304,-514.17310003,0.00050136,120]
[357101940,1743742265314,-500.0,0.00050136,120]
[357101941,1743742265323,-668.69,0.00050136,120]
[357101942,1743742265332,-500.0,0.00050136,120]
[357101943,1743742265341,-500.0,0.00050136,120]
[357101944,1743742265351,-500.0,0.00050136,120]
[357101945,1743742265360,-500.0,0.00050136,120]
[357101946,1743742265369,-500.0,0.00050136,120]
[357101947,1743742265379,-500.0,0.00050136,120]
[357101948,1743742265388,-500.0,0.00050136,120]
[357101949,1743742265397,-500.0,0.00050136,120]
[357101950,1743742265407,-1018.55,0.00050136,10]
[357101951,1743742265416,-500.0,0.00050136,120]
[357101952,1743742265426,-528.07,0.00050136,120]
[357101953,1743742265435,-500.0,0.00050136,30]
[357101954,1743742265445,-500.0,0.00050136,120]
[357101955,1743742265454,-2000.0,0.00050136,2]
[357101956,1743742265464,-636.7,0.00050136,120]
[357101957,1743742265473,-2104.44,0.00050136,120]
[357101958,1743742265483,-500.0,0.00050136,120]
[357101959,1743742265492,-500.0,0.00050136,120]
[357101960,1743742265502,-500.0,0.00050136,120]
[357101961,1743742265512,-1964.9,0.00050136,120]
[357101962,1743742265664,-500.0,0.00050136,120]
[357101963,1743742265674,-3250.94,0.00050136,2]
[357101964,1743742265683,-526.99466434,0.00050136,120]
[357101965,1743742265692,-500.0,0.00050136,120]
[357101966,1743742265701,-1041.18,0.00050136,120]
[357101967,1743742265711,-500.0,0.00050136,120]
[357101968,1743742265721,-1836.7,0.00050136,120]
[357101969,1743742265730,-500.0,0.00050136,120]
[357101970,1743742265739,-500.0,0.00050136,120]
[357101971,1743742265748,-254.29354101,0.00050136,120]
[357101972,1743742265757,-561.86,0.00050136,120]
[357101973,1743742265767,-1026.47,0.00050136,120]
[357101974,1743742265776,-500.0,0.00050136,120]
[357101975,1743742265785,-1708.57,0.00050136,120]
[357101976,1743742265794,-2260.17,0.00050136,120]
[357101977,1743742265803,-1847.64,0.00050136,120]
[357101978,1743742265812,-1600.29,0.00050136,120]
[357101979,1743742265822,-972.82,0.00050136,120]
[357101980,1743742265831,-1667.89,0.00050136,120]
[357101981,1743742265841,-1074.38,0.00050136,30]
[357101982,1743742265851,-2122.56,0.00050136,120]
[357101983,1743742265860,-565.68819427,0.00050136,120]
[357101984,1743742265869,-500.0,0.00050136,120]
[357101985,1743742265882,-500.0,0.00050136,120]
[357101986,1743742265891,-1956.99,0.00050136,120]
[357101987,1743742265900,-1120.02,0.00050136,120]
[357101988,1743742265910,-500.0,0.00050136,120]
[357101989,1743742265919,-1669.42,0.00050136,120]
[357101990,1743742265929,-500.0,0.00050136,120]
[357101991,1743742265938,-500.0,0.00050136,30]
[357101992,1743742265948,-533.22,0.00050136,2]
[357101993,1743742265960,-500.0,0.00050136,120]
[357101994,1743742265970,-2628.48,0.00050136,120]
[357101995,1743742265979,-2109.35,0.00050136,120]
[357101996,1743742265988,-560.52,0.00050136,120]
[357101997,1743742265997,-471.29413558,0.00050136,2]
[357101998,1743742266006,-1936.83,0.00050136,120]
[357101999,1743742266015,-1759.76,0.00050136,120]
[357102000,1743742266026,-2302.46,0.00050136,120]
[357102001,1743742266035,-500.0,0.00050136,120]
[357102002,1743742266044,-1845.54,0.00050136,120]
[357102003,1743742266054,-2235.82,0.00050136,120]
[357102004,1743742266063,-500.0,0.00050136,120]
[357102005,1743742266072,-650.53,0.00050136,120]
[357102006,1743742266081,-2294.51,0.00050136,120]
[357102007,1743742266090,-1764.75,0.00050136,120]
[357102008,1743742266099,-500.0,0.00050136,120]
[357102009,1743742266108,-1798.97,0.00050136,120]
[357102010,1743742266117,-2061.78,0.00050136,120]
[357102011,1743742266126,-500.0,0.00050136,120]
[357102012,1743742266135,-2212.69,0.00050136,120]
[357102013,1743742266144,-2600.67,0.00050136,120]
[357102014,1743742266153,-500.0,0.00050136,120]
[357102015,1743742266162,-1758.13,0.00050136,120]
[357102016,1743742266172,-511.72267235,0.00050136,120]
[357102017,1743742266181,-2390.89,0.00050136,120]
[357102018,1743742266191,-500.0,0.00050136,120]
[357102019,1743742266200,-1773.07,0.00050136,120]
[357102020,1743742266212,-1780.62,0.00050136,120]
[357102021,1743742266228,-2213.48,0.00050136,120]
[357102022,1743742266246,-500.0,0.00050136,120]
[357102023,1743742266255,-500.0,0.00050136,120]
[357102024,1743742266265,-1740.8,0.00050136,120]
[357102025,1743742266274,-500.0,0.00050136,120]
[357102026,1743742266284,-1782.21,0.00050136,120]
[357102027,1743742266293,-2008.49,0.00050136,120]
[357102028,1743742266303,-501.22758794,0.00050136,120]
[357102029,1743742266312,-810.96,0.00050136,120]
[357102030,1743742266321,-523.36,0.00050136,120]
[357102031,1743742266330,-2260.47,0.00050136,120]
[357102032,1743742266340,-668.1,0.00050136,120]
[357102033,1743742266350,-500.0,0.00050136,120]
[357102034,1743742266359,-2235.26,0.00050136,120]
[357102035,1743742266368,-2123.04,0.00050136,120]
[357102036,1743742266377,-1337.55,0.00050136,30]
[357102037,1743742266387,-1605.02,0.00050136,120]
[357102038,1743742266396,-500.0,0.00050136,120]
[357102039,1743742266405,-500.0,0.00050136,120]
[357102040,1743742266414,-1657.36,0.00050136,120]
[357102041,1743742266424,-1702.41,0.00050136,120]
[357102042,1743742266434,-1553.62,0.00050136,120]
[357102043,1743742266443,-500.0,0.00050136,120]
[357102044,1743742266452,-500.0,0.00050136,120]
[357102045,1743742266462,-1286.62,0.00050136,120]